bitfinex/quotes_SOLUSD_20250831
["timestamp","ask_amount","ask_price","bid_price","bid_amount"]
[1756605593306,3.42470363,206.76,206.75,38.31]
[1756605593709,4.10470363,206.76,206.75,38.31]
[1756605601334,26.0,206.73,206.72,0.03]
[1756605601538,29.42470363,206.73,206.7,0.03]
[1756605601832,3.42470363,206.71,206.7,0.03]
[1756605602017,8.26239895,206.71,206.7,0.03]
[1756605602324,4.08470363,206.71,206.7,0.03]
[1756605602509,7.69828928,206.71,206.7,0.03]
[1756605603206,0.66,206.71,206.7,0.03]
[1756605603407,4.08470363,206.71,206.7,0.03]
[1756605603808,0.66,206.71,206.7,0.03]
[1756605604025,3.42470363,206.73,206.7,0.03]
[1756605604224,4.08470363,206.74,206.7,0.03]
[1756605604427,0.66,206.76,206.71,4.07470363]
[1756605604631,0.66,206.76,206.72,13.59559401]
[1756605604935,0.66,206.76,206.73,38.26]
[1756605605627,3.42470363,206.78,206.73,38.91]
[1756605605818,4.08470364,206.79,206.74,17.67029764]
[1756605606013,0.66000001,206.79,206.75,4.83675937]
[1756605606522,4.08470364,206.79,206.75,4.83675937]
[1756605606734,3.42470363,206.77,206.73,43.09703713]
[1756605606934,4.08470363,206.76,206.73,38.26]
[1756605607144,3.42470363,206.74,206.7,0.03]
[1756605607323,4.08470363,206.73,206.71,38.26]
[1756605607520,26.0,206.77,206.72,13.59559401]
[1756605607732,26.00000001,206.79,206.72,14.24559401]
[1756605607733,0.66,206.76,206.72,14.24559401]
[1756605607944,4.08470363,206.76,206.72,18.43296816]
[1756605608235,0.66,206.76,206.72,18.43296816]
[1756605611639,0.06,206.77,206.74,17.02029764]
[1756605611832,0.06,206.77,206.75,42.33470363]
[1756605612136,0.06,206.77,206.76,17.02029764]
[1756605612338,0.06,206.77,206.76,17.67029764]
[1756605612839,0.06,206.77,206.76,22.50682308]
[1756605613346,0.06,206.77,206.76,56.69211945]
[1756605613533,0.06,206.77,206.76,57.34211945]
[1756605613729,0.06,206.77,206.76,60.76682308]
[1756605616327,1e-08,206.79,206.76,60.76682308]
[1756605616531,1e-08,206.79,206.78,17.02029764]
[1756605617041,1e-08,206.79,206.78,17.67029764]
[1756605617549,1e-08,206.79,206.78,22.50635528]
[1756605618925,1e-08,206.79,206.78,60.74635528]
[1756605620049,1e-08,206.79,206.78,22.50635528]
[1756605620257,1e-08,206.79,206.78,18.43165165]
[1756605620444,1e-08,206.79,206.78,56.67165165]
[1756605620830,0.66000001,206.79,206.78,51.83559401]
[1756605621238,4.08470364,206.79,206.72,13.59559401]
[1756605621437,4.08470364,206.79,206.74,13.59559401]
[1756605621438,3.42470363,206.77,206.74,13.59559401]
[1756605621657,0.66,206.76,206.75,38.24]
[1756605622454,0.66,206.76,206.75,43.07675937]
[1756605623254,4.08470363,206.76,206.72,4.8374613]
[1756605623462,0.66,206.75,206.73,38.24]
[1756605623761,1e-08,206.79,206.71,13.59559401]
[1756605623762,4.08470363,206.74,206.71,13.59559401]
[1756605623952,4.08470363,206.73,206.72,38.24]
[1756605624263,0.66,206.73,206.72,43.0774613]
[1756605624625,3.42470363,206.74,206.72,43.0774613]
[1756605624828,4.08470363,206.74,206.72,43.0774613]
[1756605625062,0.66,206.74,206.72,43.0774613]
[1756605625367,0.66,206.73,206.72,43.0774613]
[1756605625539,3.42470363,206.74,206.72,43.0774613]
[1756605625734,3.42470363,206.75,206.72,43.0774613]
[1756605625932,0.66,206.74,206.72,43.0774613]
[1756605626333,0.66,206.73,206.72,43.0774613]
[1756605626535,4.83591364,206.79,206.75,13.59559401]
[1756605626536,1e-08,206.79,206.75,13.59559401]
[1756605626749,1e-08,206.79,206.78,17.02029764]
[1756605626949,1e-08,206.79,206.78,55.26029764]
[1756605627136,0.2,206.93,206.85,13.59559401]
[1756605627449,3.42470363,206.91,206.86,38.24]
[1756605627641,0.86,206.9,206.87,17.02029764]
[1756605627840,0.2,206.9,206.88,38.24]
[1756605628267,0.2,206.9,206.89,4.83348639]
[1756605629157,0.86,206.9,206.89,38.24]
[1756605629454,0.2,206.9,206.89,38.24]
[1756605629967,0.86,206.9,206.89,38.24]
[1756605631252,4.28470363,206.9,206.87,18.42954149]
[1756605631552,3.62470363,206.9,206.84,4.8346548]
[1756605631758,4.33470363,206.9,206.85,51.81559401]
[1756605632058,0.91,206.9,206.85,55.24029764]
[1756605632957,0.91,206.9,206.86,4.83418737]
[1756605633462,0.91,206.9,206.87,38.22]
[1756605633671,0.2,206.9,206.87,38.22]
[1756605633864,0.2,206.9,206.88,14.27559401]
[1756605634170,0.2,206.93,206.92,39.59559401]
[1756605634370,325.95,207.0,206.93,13.59559401]
[1756605634547,325.95,207.0,206.95,13.59559401]
[1756605634746,326.66,207.0,206.97,13.59559401]
[1756605634947,325.95,207.0,206.98,4.83138467]
[1756605635157,325.95,207.0,206.99,38.22]
[1756605636052,329.37470363,207.0,206.99,38.22]
[1756605636366,329.37470363,207.0,206.94,3.42470363]
[1756605636367,330.08470363,207.0,206.9,0.68]
[1756605636569,3.42470363,206.96,206.91,51.81559401]
[1756605636751,4.13470363,206.96,206.91,56.64861319]
[1756605637264,325.95,207.0,206.91,57.32861319]
[1756605637567,3.42470363,206.94,206.89,4.83325331]
[1756605637767,3.42470363,206.94,206.9,51.81559401]
[1756605637954,4.13470363,206.94,206.9,51.81559401]
[1756605638154,3.42470363,206.93,206.9,13.59559401]
[1756605638339,4.13470363,206.93,206.91,38.22]
[1756605638546,4.13470363,206.93,206.9,13.59559401]
[1756605638869,4.13470363,206.93,206.91,37.72]
[1756605639066,4.13470363,206.93,206.87,13.59559401]
[1756605639270,0.71,206.93,206.89,13.59559401]
[1756605639568,5.78866488,206.93,206.89,13.59559401]
[1756605639949,0.71,206.95,206.89,13.59559401]
[1756605640149,5.78866488,206.93,206.89,13.59559401]
[1756605640594,5.78866488,206.91,206.9,38.22]
[1756605640945,6.49866488,206.91,206.9,38.22]
[1756605641550,0.71,206.91,206.9,38.22]
[1756605641766,6.49866488,206.91,206.9,38.22]
[1756605642872,0.71,206.94,206.9,43.05314714]
[1756605643169,26.71,206.97,206.91,13.59559401]
[1756605643348,26.71,206.97,206.9,43.73314714]
[1756605643349,5.78866488,206.93,206.9,38.22]
[1756605643674,5.78866488,206.92,206.9,38.22]
[1756605644055,6.49866488,206.92,206.9,38.22]
[1756605644882,5.78866488,206.91,206.88,18.42927018]
[1756605645057,26.0,206.97,206.79,34.86]
[1756605645058,5.78866488,206.89,206.83,0.68]
[1756605645252,5.78866488,206.88,206.84,51.79559401]
[1756605645451,5.78866488,206.88,206.84,51.82559401]
[1756605645655,6.49866488,206.88,206.84,51.82559401]
[1756605645858,5.78866488,206.86,206.84,0.03]
[1756605646069,0.71,206.87,206.85,38.2]
[1756605646381,0.71,206.89,206.85,38.2]
[1756605646558,0.71,206.88,206.85,38.2]
[1756605646753,0.71,206.87,206.85,38.2]
[1756605646953,0.71,206.86,206.84,0.03]
[1756605647256,0.71,206.86,206.85,38.2]
[1756605648086,0.71,206.86,206.84,0.03]
[1756605648276,5.78866488,206.85,206.84,38.23]
[1756605648576,6.49866488,206.85,206.84,38.23]
[1756605649465,6.49866488,206.85,206.84,0.03]
[1756605650593,0.71,206.85,206.84,0.03]
[1756605650758,6.49866488,206.85,206.84,0.03]
[1756605651455,5.78866488,206.86,206.84,0.03]
[1756605651658,5.78866488,206.88,206.84,0.03]
[1756605651867,5.78866488,206.9,206.85,14.27559401]
[1756605652178,5.78866488,206.91,206.86,44.68866488]
[1756605652475,0.06,206.92,206.89,13.59559401]
[1756605652770,0.06,206.92,206.9,38.22]
[1756605652978,0.77,206.92,206.9,38.22]
[1756605653364,0.06,206.92,206.9,43.0532367]
[1756605655658,0.06,206.92,206.9,38.22]
[1756605656254,6.49866488,206.91,206.9,38.22]
[1756605657075,0.71,206.91,206.9,38.22]
[1756605657360,0.06,206.92,206.9,38.22]
[1756605657361,5.84866488,206.92,206.9,38.22]
[1756605657769,5.78866488,206.91,206.9,38.22]
[1756605658184,0.06,206.92,206.9,38.22]
[1756605658378,5.78866488,206.91,206.9,38.22]
[1756605658575,6.55866488,206.92,206.9,38.22]
[1756605660588,0.06,206.92,206.9,43.7332057]
[1756605660765,6.49866488,206.91,206.9,38.22]
[1756605660962,5.78866488,206.91,206.9,38.22]
[1756605661167,0.06,206.92,206.9,38.22]
[1756605661585,0.06,206.92,206.91,0.72]
[1756605661764,0.06,206.92,206.91,5.55301918]
[1756605661970,0.06,206.92,206.91,19.14861319]
[1756605663064,0.06,206.92,206.91,21.83998561]
[1756605663278,3.47137242,206.92,206.91,38.2]
[1756605663692,0.06,206.92,206.91,38.2]
[1756605663897,0.06,206.92,206.91,43.03301918]
[1756605664588,0.06,206.92,206.91,57.34861319]
[1756605665497,0.06,206.92,206.91,56.62861319]
[1756605669802,0.06,206.92,206.91,57.34861319]
[1756605669995,0.06,206.92,206.91,56.62861319]
[1756605671301,0.06,206.92,206.91,57.34861319]
[1756605671475,0.06,206.92,206.91,56.62861319]
[1756605673501,0.06,206.92,206.91,57.34861319]
[1756605674498,0.06,206.95,206.92,13.59559401]
[1756605674706,0.06,206.95,206.93,38.2]
[1756605674923,0.06,206.95,206.93,38.92]
[1756605675086,0.06,206.95,206.94,5.55231854]
[1756605676104,0.06,206.95,206.94,8.96369096]
[1756605676790,0.06,206.95,206.94,4.83231854]
[1756605676985,0.06,206.95,206.94,18.42791255]
[1756605679190,0.06,206.95,206.94,19.14791255]
[1756605679800,0.06,206.95,206.94,18.42791255]
[1756605681025,0.06,206.95,206.94,19.14791255]
[1756605681710,0.06,206.95,206.94,22.55928497]
[1756605682907,0.06,206.95,206.94,18.42791255]
[1756605683094,0.06,206.95,206.94,21.83928497]
[1756605684013,0.06,206.95,206.94,22.55928497]
[1756605684303,0.06,206.95,206.94,21.83928497]
[1756605684495,0.06,206.95,206.94,22.55928497]
[1756605685013,0.06,206.95,206.94,21.83928497]
[1756605686012,0.06,206.95,206.92,4.86275225]
[1756605686200,0.76,206.95,206.93,51.77559401]
[1756605686603,0.06,206.95,206.93,51.77559401]
[1756605686827,0.7,206.94,206.92,4.86275225]
[1756605686999,0.7,206.93,206.92,0.03]
[1756605687314,0.7,206.93,206.92,38.21]
[1756605687315,4.11137242,206.93,206.92,38.21]
[1756605688088,30.11137242,206.93,206.92,38.21]
[1756605688299,4.11137242,206.93,206.92,38.21]
[1756605688819,0.7,206.93,206.92,38.21]
[1756605689004,4.11137242,206.93,206.92,38.21]
[1756605689201,0.7,206.93,206.92,38.21]
[1756605689401,4.11137242,206.93,206.92,38.21]
[1756605689599,0.7,206.93,206.92,38.21]
[1756605689892,4.11137242,206.93,206.92,38.21]
[1756605690596,4.11137242,206.93,206.92,0.03]
[1756605690809,4.11137242,206.93,206.92,38.21]
[1756605695420,3.41137242,206.94,206.92,38.21]
[1756605695737,4.06137242,206.93,206.92,38.21]
[1756605696234,0.65,206.93,206.92,38.21]
[1756605696412,0.65,206.93,206.92,43.04278561]
[1756605696413,3.41137242,206.93,206.92,43.04278561]
[1756605696595,0.71,206.95,206.92,43.04278561]
[1756605696792,3.41137242,206.93,206.92,43.04278561]
[1756605697018,3.41137242,206.93,206.92,38.21]
[1756605697816,3.41137242,206.94,206.92,43.04278561]
[1756605698729,0.06,206.95,206.92,43.75278561]
[1756605698939,0.06,206.95,206.93,0.71]
[1756605699227,0.06,206.95,206.94,51.77559401]
[1756605699808,3.47137242,206.95,206.94,38.18]
[1756605700012,4.12137242,206.95,206.92,4.86278561]
[1756605700200,3.47137242,206.95,206.93,38.18]
[1756605700401,4.12137242,206.95,206.93,43.01248555]
[1756605700633,3.47137242,206.95,206.93,43.01248555]
[1756605701606,3.41137242,206.94,206.93,38.18]
[1756605702505,4.06137242,206.94,206.92,0.03]
[1756605702718,0.06,206.95,206.93,38.18]
[1756605703028,0.71,206.95,206.92,0.03]
[1756605703322,0.71,206.95,206.93,38.18]
[1756605703526,0.65,206.94,206.93,38.18]
[1756605703729,4.06137242,206.94,206.93,38.18]
[1756605704409,3.41137242,206.94,206.93,38.18]
[1756605704617,4.06137242,206.94,206.93,38.18]
[1756605706110,30.06137242,206.94,206.93,38.18]
[1756605706830,3.41137242,206.94,206.93,38.18]
[1756605708110,30.06137242,206.94,206.93,38.18]
[1756605709012,8.89369096,206.94,206.93,38.18]
[1756605711412,5.48231854,206.94,206.93,38.18]
[1756605711730,8.89369096,206.94,206.93,38.18]
[1756605714116,8.89369096,206.94,206.92,0.03]
[1756605714315,3.41137242,206.93,206.92,0.03]
[1756605714521,4.06137242,206.93,206.92,0.03]
[1756605714723,8.89392449,206.93,206.92,0.03]
[1756605715035,26.0,206.9,206.87,0.03]
[1756605715328,26.0,206.9,206.84,0.03]
[1756605715329,26.0,206.86,206.84,0.03]
[1756605715529,3.41137242,206.85,206.84,0.03]
[1756605715833,4.06137242,206.85,206.84,1e-08]
[1756605716238,26.0,206.82,206.79,0.03]
[1756605716436,32.82274484,206.82,206.79,0.03]
[1756605716613,6.82274484,206.8,206.79,0.03]
[1756605716811,11.65833478,206.8,206.79,0.03]
[1756605717134,12.30833478,206.8,206.79,0.03]
[1756605718748,18.24833478,206.8,206.79,0.03]
[1756605718943,26.0,206.77,206.73,5.94]
[1756605719115,3.41137242,206.74,206.73,5.94]
[1756605719628,4.06137242,206.74,206.73,5.94]
[1756605719845,4.06137242,206.74,206.72,0.03]
[1756605720148,3.41137242,206.73,206.72,0.03]
[1756605720338,4.06137242,206.73,206.72,0.03]
[1756605720710,30.06137242,206.73,206.72,0.03]
[1756605720946,34.89859972,206.73,206.72,0.03]
[1756605721240,29.41137242,206.73,206.72,0.03]
[1756605721417,3.41137242,206.73,206.72,0.03]
[1756605722936,34.93859972,206.73,206.72,0.03]
[1756605723930,38.34997214,206.73,206.7,0.03]
[1756605724250,32.82274484,206.71,206.7,0.03]
[1756605724750,33.51274484,206.71,206.68,0.03]
[1756605724951,4.83839752,206.68,206.66,0.03]
[1756605725116,4.83839752,206.68,206.65,0.03]
[1756605725117,3.41137242,206.66,206.65,0.03]
[1756605725560,6.04175342,206.66,206.65,0.03]
[1756605727028,10.88061918,206.66,206.61,0.03]
[1756605727226,3.41137242,206.64,206.61,0.03]
[1756605727644,4.10137242,206.64,206.61,0.03]
[1756605728138,26.0,206.62,206.61,0.03]
[1756605728338,6.82274484,206.58,206.57,0.1]
[1756605728725,7.51274484,206.58,206.57,0.1]
[1756605728933,9.45387984,206.58,206.57,0.1]
[1756605729238,14.2946195,206.58,206.57,0.1]
[1756605729441,20.0,206.72,206.57,14.41559401]
[1756605729626,3.41137242,206.65,206.59,3.41137242]
[1756605729832,3.41137242,206.65,206.6,0.72]
[1756605730026,4.83769532,206.71,206.61,13.59559401]
[1756605730237,26.0,206.69,206.62,0.72]
[1756605730435,3.41137242,206.64,206.62,0.72]
[1756605730639,3.41137242,206.64,206.63,0.72]
[1756605731240,26.0,206.68,206.63,0.72]
[1756605731241,3.41137242,206.65,206.63,0.72]
[1756605731944,3.41137242,206.66,206.63,0.72]
[1756605732826,30.83819614,206.69,206.64,0.72]
[1756605733029,3.41137242,206.65,206.61,13.59559401]
[1756605733235,3.41137242,206.65,206.62,0.72]
[1756605733434,5.80393932,206.65,206.63,0.72]
[1756605734347,30.83818877,206.69,206.63,0.72]
[1756605734348,5.80393932,206.66,206.63,0.72]
[1756605734844,5.80393932,206.64,206.63,0.72]
[1756605735045,5.80393932,206.64,206.62,13.59559401]
[1756605735227,5.80393932,206.63,206.62,13.59559401]
[1756605735622,5.80393932,206.64,206.58,19.39953333]
[1756605735844,5.80393932,206.6,206.58,13.59559401]
[1756605736051,5.80393932,206.61,206.59,14.31559401]
[1756605736251,5.80393932,206.62,206.6,0.72]
[1756605736562,4.83818877,206.69,206.61,13.59559401]
[1756605736734,5.80393932,206.65,206.61,14.31559401]
[1756605736939,5.80393932,206.63,206.61,0.72]
[1756605737453,5.80393932,206.65,206.62,0.72]
[1756605737628,5.80393932,206.65,206.63,0.75]
[1756605738341,5.80393932,206.64,206.63,0.03]
[1756605738746,4.83898173,206.66,206.63,0.03]
[1756605738950,5.80393932,206.64,206.63,0.03]
[1756605740148,6.49393932,206.64,206.63,0.03]
[1756605740327,11.33327342,206.64,206.63,0.03]
[1756605740537,26.0,206.64,206.63,0.03]
[1756605740734,31.80393932,206.64,206.63,0.03]
[1756605743556,5.80393932,206.66,206.63,0.75]
[1756605743745,31.80393932,206.66,206.63,0.75]
[1756605744057,5.80393932,206.66,206.63,0.75]
[1756605744550,5.80393932,206.66,206.63,0.03]
[1756605745672,31.80393932,206.66,206.63,0.03]
[1756605745842,5.80393932,206.65,206.63,0.03]
[1756605746238,5.80393932,206.64,206.63,0.03]
[1756605746433,6.49393932,206.64,206.63,0.03]
[1756605748254,11.33327342,206.64,206.63,0.03]
[1756605750043,17.13721274,206.64,206.63,0.03]
[1756605750679,26.0,206.61,206.6,0.03]
[1756605750845,31.80393932,206.61,206.6,0.03]
[1756605751167,32.49393932,206.61,206.6,0.03]
[1756605751540,34.43488632,206.61,206.6,0.03]
[1756605752058,28.630947,206.61,206.6,0.03]
[1756605752248,37.3339761,206.61,206.6,0.03]
[1756605752670,36.6439761,206.61,206.6,0.03]
[1756605752844,31.80393932,206.61,206.6,0.03]
[1756605754462,37.3339761,206.61,206.6,0.03]
[1756605755366,38.37866982,206.61,206.6,0.03]
[1756605755571,38.37866982,206.61,206.58,0.03]
[1756605755862,6.84863304,206.59,206.58,0.03]
[1756605756237,12.37913838,206.59,206.58,0.03]
[1756605757470,11.34192445,206.59,206.58,0.03]
[1756605760695,30.84120836,206.56,206.55,0.03]
[1756605760861,36.65262747,206.56,206.54,0.1]
[1756605761058,5.81141911,206.55,206.54,0.1]
[1756605761473,5.53120836,206.56,206.54,0.1]
[1756605761657,5.81141911,206.55,206.54,0.1]
[1756605762558,10.65286185,206.55,206.54,0.1]
[1756605766452,11.34286185,206.55,206.54,0.1]
[1756605766853,10.65286185,206.55,206.54,0.1]
[1756605770887,11.34286185,206.55,206.54,0.1]
[1756605773276,26.0,206.52,206.49,0.03]
[1756605773593,5.81141911,206.5,206.49,0.03]
[1756605774092,17.15545323,206.5,206.49,0.03]
[1756605774679,11.34403412,206.5,206.49,0.03]
[1756605775666,17.15545323,206.5,206.49,0.03]
[1756605776065,11.34403412,206.5,206.49,0.03]
[1756605776569,17.15545323,206.5,206.49,0.03]
[1756605776794,5.53261501,206.5,206.49,0.03]
[1756605777008,17.15545323,206.5,206.49,0.03]
[1756605777366,8.9601551,206.5,206.49,0.03]
[1756605778698,8.9601551,206.5,206.48,0.03]
[1756605778900,26.0,206.46,206.42,0.1]
[1756605779187,3.42754009,206.43,206.42,0.1]
[1756605779390,26.0,206.47,206.42,0.1]
[1756605779604,4.84355323,206.46,206.43,0.7]
[1756605780281,4.84355323,206.46,206.42,0.1]
[1756605780506,0.69,206.52,206.43,0.7]
[1756605780716,3.42754009,206.51,206.46,13.59559401]
[1756605780884,3.42754009,206.5,206.47,0.7]
[1756605781202,26.0,206.51,206.48,0.7]
[1756605781373,3.42754009,206.5,206.48,0.7]
[1756605781774,3.42754009,206.5,206.49,0.68]
[1756605781971,26.0,206.51,206.49,0.68]
[1756605782210,29.42754009,206.51,206.49,0.68]
[1756605782382,3.42754009,206.51,206.5,0.68]
[1756605782705,3.42754009,206.53,206.5,0.68]
[1756605783188,3.42754009,206.53,206.48,13.59559401]
[1756605783400,3.42754009,206.53,206.51,0.68]
[1756605783577,29.42754009,206.53,206.52,0.68]
[1756605783777,3.42754009,206.53,206.52,0.68]
[1756605783977,3.42754009,206.54,206.52,0.68]
[1756605784179,4.90148505,206.55,206.52,0.68]
[1756605784180,0.06,206.55,206.52,0.68]
[1756605785179,26.0,206.52,206.47,0.68]
[1756605785401,3.42754009,206.48,206.45,13.59559401]
[1756605785900,3.42754009,206.46,206.43,51.91559401]
[1756605786105,3.42754009,206.44,206.43,52.59559401]
[1756605786310,3.42754009,206.44,206.43,14.27559401]
[1756605786501,3.42754009,206.44,206.42,0.1]
[1756605786697,3.42754009,206.43,206.42,0.1]
[1756605786918,4.09754009,206.43,206.42,0.1]
[1756605787705,8.27179722,206.43,206.42,0.1]
[1756605788312,4.84381998,206.45,206.42,0.1]
[1756605788617,29.42754009,206.43,206.42,0.1]
[1756605789510,31.81739145,206.43,206.42,0.1]
[1756605790014,5.81739145,206.43,206.42,0.78]
[1756605790211,5.81739145,206.44,206.42,0.78]
[1756605790417,5.81739145,206.49,206.43,19.41298546]
[1756605790603,5.81739145,206.49,206.45,13.59559401]
[1756605791210,5.81739145,206.49,206.46,0.68]
[1756605791401,5.81739145,206.49,206.47,0.68]
[1756605791902,5.81739145,206.48,206.43,0.68]
[1756605792204,5.81739145,206.47,206.44,14.27559401]
[1756605792512,5.81739145,206.47,206.45,0.71]
[1756605792699,5.81739145,206.48,206.45,0.71]
[1756605793099,5.81739145,206.48,206.46,0.68]
[1756605793892,5.81739145,206.49,206.46,0.68]
[1756605794105,5.81739145,206.49,206.45,0.03]
[1756605794487,5.81739145,206.48,206.45,0.03]
[1756605795510,5.81739145,206.48,206.45,0.71]
[1756605795809,5.81739145,206.49,206.45,0.71]
[1756605796708,5.87739145,206.53,206.47,19.41298546]
[1756605797008,5.81739145,206.49,206.48,38.3]
[1756605797394,5.81739145,206.5,206.48,38.3]
[1756605797599,5.81739145,206.51,206.48,38.98]
[1756605798101,5.81739145,206.51,206.48,38.3]
[1756605798814,5.81739145,206.51,206.45,13.62559401]
[1756605798815,5.81739145,206.49,206.45,13.62559401]
[1756605799004,5.81739145,206.49,206.45,14.30559401]
[1756605799191,5.81739145,206.49,206.46,38.98]
[1756605799688,5.81739145,206.49,206.46,0.68]
[1756605799914,5.81739145,206.49,206.47,38.3]
[1756605800289,5.81739145,206.5,206.47,38.3]
[1756605800909,5.81739145,206.5,206.48,38.28]
[1756605801611,5.81739145,206.5,206.47,0.68]
[1756605801821,5.81739145,206.49,206.48,38.28]
[1756605802308,6.48739145,206.49,206.47,38.26]
[1756605802504,5.81739145,206.48,206.47,38.26]
[1756605802815,6.48739145,206.48,206.47,38.26]
[1756605803013,6.48739145,206.48,206.45,0.03]
[1756605803322,5.81739145,206.46,206.45,0.03]
[1756605803497,5.81739145,206.46,206.45,38.31]
[1756605803700,6.48739145,206.46,206.45,0.03]
[1756605803898,6.48739145,206.46,206.45,38.29]
[1756605804099,5.81739145,206.46,206.45,38.29]
[1756605805418,5.81739145,206.46,206.45,0.03]
[1756605805640,11.33094468,206.46,206.45,0.03]
[1756605807028,5.81739145,206.5,206.45,14.30559401]
[1756605807203,5.81739145,206.51,206.46,0.68]
[1756605807404,31.81739145,206.51,206.47,0.68]
[1756605807607,5.81739145,206.51,206.47,5.5232453]
[1756605807921,5.87739145,206.53,206.48,14.27559401]
[1756605808101,5.87739145,206.53,206.49,39.02]
[1756605808503,5.81739145,206.52,206.49,38.34]
[1756605808724,5.81739145,206.52,206.48,13.59559401]
[1756605808927,0.06,206.53,206.5,13.59559401]
[1756605809229,0.06,206.53,206.51,0.68]
[1756605809807,0.06,206.53,206.51,5.52221295]
[1756605810425,0.06,206.53,206.52,13.59559401]
[1756605811021,0.06,206.53,206.52,18.43774004]
[1756605811215,0.06,206.53,206.52,24.93513149]
[1756605812499,0.06,206.53,206.49,50.44677025]
[1756605812500,0.06,206.53,206.49,0.68]
[1756605812702,0.06,206.53,206.5,38.34]
[1756605812925,0.06,206.53,206.51,13.59559401]
[1756605813507,5.81739145,206.52,206.46,0.68]
[1756605813712,5.81739145,206.5,206.47,51.93559401]
[1756605813914,5.81739145,206.49,206.47,51.93559401]
[1756605814213,5.81739145,206.48,206.47,51.93559401]
[1756605814417,5.81739145,206.48,206.45,0.03]
[1756605814614,5.81739145,206.46,206.45,0.03]
[1756605814803,5.81739145,206.46,206.45,38.41]
[1756605818332,6.49739145,206.46,206.45,38.35]
[1756605818635,11.34094468,206.46,206.45,0.03]
[1756605818835,11.34094468,206.46,206.45,38.35]
[1756605820714,5.52355323,206.46,206.45,38.35]
[1756605820921,11.34094468,206.46,206.45,38.35]
[1756605823019,6.49739145,206.46,206.45,38.35]
[1756605824637,11.34094468,206.46,206.45,38.35]
[1756605825441,8.95049697,206.46,206.45,38.35]
[1756605827633,8.95049697,206.46,206.45,0.03]
[1756605827947,8.95049697,206.46,206.45,38.27]
[1756605828156,8.27049697,206.46,206.45,38.27]
[1756605830645,8.27049697,206.46,206.45,0.03]
[1756605830831,8.95049697,206.46,206.45,0.03]
[1756605835646,26.68,206.5,206.45,0.03]
[1756605835848,3.42694374,206.46,206.45,0.03]
[1756605838155,8.27049697,206.46,206.45,0.03]
[1756605839736,4.84355323,206.46,206.45,0.03]
[1756605840044,8.27049697,206.46,206.45,0.03]
[1756605840247,8.95049697,206.46,206.45,0.03]
[1756605840464,34.95049697,206.46,206.45,0.03]
[1756605843026,8.95049697,206.46,206.45,0.03]
[1756605844934,21.05938004,206.46,206.42,0.1]
[1756605845149,3.42694374,206.43,206.42,0.1]
[1756605845545,4.11694374,206.43,206.42,0.1]
[1756605845945,30.11694374,206.43,206.42,0.1]
[1756605846153,34.96120087,206.43,206.42,0.1]
[1756605847941,31.53425713,206.43,206.42,0.1]
[1756605848142,34.96120087,206.43,206.42,0.1]
[1756605852868,34.96120087,206.43,206.42,1e-08]
[1756605853744,34.96120087,206.43,206.4,0.03]
[1756605853954,29.42694374,206.41,206.4,0.03]
[1756605854346,30.11694374,206.41,206.4,0.03]
[1756605854941,34.96167025,206.41,206.4,0.03]
[1756605855570,38.90742171,206.41,206.4,0.03]
[1756605856073,30.84472651,206.41,206.4,0.03]
[1756605856239,34.27167025,206.41,206.4,0.03]
[1756605856446,34.96167025,206.41,206.4,0.03]
[1756605858367,31.53472651,206.41,206.4,0.03]
[1756605858573,34.96167025,206.41,206.4,0.03]
[1756605859946,30.84472651,206.41,206.4,0.03]